fUST/lending_fUST_20260406
["ID","MTS","AMOUNT","RATE_DAILY","PERIOD"]
[419889066,1775469039033,-500.0,0.00023399,2]
[419889067,1775469039042,-500.0,0.00023399,2]
[419889068,1775469039051,-500.0,0.00023399,2]
[419889069,1775469039061,-500.0,0.00023399,2]
[419889070,1775469039071,-155.07011716,0.00023399,2]
[419889071,1775469039080,-500.0,0.00023399,2]
[419889072,1775469039090,-500.0,0.00023399,2]
[419889073,1775469039099,-54147.06755344,0.000234,2]
[419889074,1775469039109,-100000.0,0.000235,10]
[419889075,1775469039118,-179.0,0.00023562,10]
[419889076,1775469039127,-1836.55998933,0.0002362,2]
[419889077,1775469039137,-2230.315306,0.0002362,2]
[419889078,1775469039147,-460.9211735,0.0002362,2]
[419889079,1775469039156,-151.0,0.00023622,2]
[419889080,1775469039166,-168.3888056,0.00023622,2]
[419889081,1775469039176,-461.67526834,0.00023622,2]
[419889082,1775469039186,-151.0,0.00023622,2]
[419889083,1775469039196,-151.0,0.00023622,2]
[419889084,1775469039205,-151.0,0.00023622,2]
[419889085,1775469039214,-151.0,0.00023622,2]
[419889086,1775469039224,-200.92307804,0.00023622,2]
[419889087,1775469039234,-557.5788265,0.00023622,2]
[419889088,1775469039243,-162.380719,0.00023622,2]
[419889089,1775469039253,-686.86,0.00023636,2]
[419889090,1775469039262,-686.86,0.00023636,2]
[419889091,1775469039272,-686.86,0.00023636,2]
[419889092,1775469039281,-686.86,0.00023636,2]
[419889093,1775469039290,-686.86,0.00023636,2]
[419889094,1775469039300,-686.86,0.00023636,2]
[419889095,1775469039309,-686.86,0.00023636,2]
[419889096,1775469039319,-686.86,0.00023636,2]
[419889097,1775469039328,-686.86,0.00023636,2]
[419889098,1775469039338,-686.86,0.00023636,2]
[419889099,1775469039348,-686.86,0.00023636,2]
[419889100,1775469039357,-686.86,0.00023636,2]
[419889101,1775469039367,-1010.04,0.00023636,2]
[419889102,1775469039377,-200.0,0.00023672,2]
[419889103,1775469039387,-194.0,0.000238,2]
[419889104,1775469039397,-171.2003152,0.00023835,2]
[419889105,1775469039407,-152.0,0.000239,2]
[419889106,1775469039416,-1000.0,0.00023921,2]
[419889107,1775469039426,-1000.0,0.00023921,2]
[419889108,1775469039435,-219.0,0.00024,2]
[419889109,1775469039444,-233.0,0.00024,2]
[419889110,1775469039454,-155.0,0.00024,2]
[419889111,1775469039463,-250.0,0.00024021,2]
[419889112,1775469039472,-2312.83697232,0.00024168,2]
[419889113,1775469039482,-151.0,0.0002417,2]
[419889114,1775469039491,-478.75725327,0.0002417,2]
[419889115,1775469039500,-578.20924308,0.0002417,2]
[419889116,1775469039510,-302.69369631,0.0002417,2]
[419889117,1775469039519,-2292.26260932,0.00024382,2]
[419889118,1775469039529,-171.87403789,0.00024384,30]
[419889119,1775469039538,-1147.22558249,0.00024468,2]
[419889120,1775469039547,-1500.0,0.00024468,2]
[419889121,1775469039557,-151.0,0.000245,8]
[419889122,1775469039567,-350.0,0.00024568,2]
[419889123,1775469039576,-151.0,0.000246,10]
[419889124,1775469039585,-160.0,0.00024658,2]
[419889125,1775469039595,-160.0,0.00024658,2]
[419889126,1775469039604,-161.23032473,0.00024658,2]
[419889127,1775469039614,-171.87403789,0.00024658,30]
[419889128,1775469039624,-200.0,0.00024658,2]
[419889129,1775469039634,-2398.4119403,0.00024716,2]
[419889130,1775469039644,-152.31807654,0.00024718,2]
[419889131,1775469039654,-338.59534223,0.00024718,2]
[419889132,1775469039663,-401.21193042,0.00024718,2]
[419889133,1775469039673,-358.44112695,0.00024726,2]
[419889134,1775469039683,-1432.33074328,0.00024726,2]
[419889135,1775469039692,-247.33090863,0.00024726,2]
[419889136,1775469039702,-988.33431087,0.00024726,2]
[419889137,1775469039711,-151.0,0.000248,8]
[419889138,1775469039721,-269.0,0.000249,2]
[419889139,1775469039731,-7067.96379548,0.000249,2]
[419889140,1775469039740,-160.0,0.000249,2]
[419889141,1775469039749,-171.87403789,0.00024904,30]
[419889142,1775469039759,-227.35527022,0.00024946,2]
[419889143,1775469039768,-295.7851944,0.00024991,2]
[419889144,1775469039778,-861.63350991,0.00025,30]
[419889145,1775469039787,-2970.24343256,0.00025,30]
[419889146,1775469039797,-151.0,0.00025,10]
[419889147,1775469039806,-4900.0,0.00025,8]
[419889148,1775469039816,-936.71,0.00025,30]
[419889149,1775469039825,-219.0,0.00025,2]
[419889150,1775469039835,-233.0,0.00025,2]
[419889151,1775469039844,-163.0,0.00025,2]
[419889152,1775469039854,-2000.0,0.00025016,2]
[419889153,1775469039863,-151.0,0.000251,10]
[419889154,1775469039873,-450.0,0.00025116,2]
[419889155,1775469039882,-171.87403789,0.00025178,30]
[419889156,1775469039891,-1766.99094887,0.0002519,2]
[419889157,1775469039901,-1757.227674,0.000252,5]
[419889158,1775469039910,-2487.15318209,0.00025264,2]
[419889159,1775469039919,-151.0,0.000253,19]
[419889160,1775469039929,-4038.68668671,0.00025391,2]
[419889161,1775469039939,-151.0,0.000254,10]
[419889162,1775469039949,-171.87403789,0.00025425,30]
[419889163,1775469039959,-26504.864233,0.00025434,2]
[419889164,1775469039969,-1000.0,0.00025443,6]
[419889165,1775469039979,-895797.59489475,0.00025444,2]
[419889172,1775469041203,-5142.75770885,0.00025444,2]
[419889173,1775469041215,-1333.65335123,0.00025444,2]
[419889174,1775469041227,-712.22,0.00025444,2]
[419889175,1775469041238,-260.70219178,0.00025444,2]
[419889176,1775469041249,-12565.25739064,0.00025444,2]
[419889194,1775469043394,-14559.34357715,0.00025444,2]
[419889207,1775469046479,-13700.12653948,0.00025444,2]
[419889208,1775469046491,-1840.72930003,0.00025444,2]
[419889209,1775469046501,-652.30826344,0.00025444,2]
[419889210,1775469082144,1000.0,0.00032876,120]
[419889211,1775469100319,182.617494,0.00027655,120]
[419889212,1775469191787,271.555071,0.0002744,120]
[419889213,1775469374993,30999.99,0.00032876,120]
[419889214,1775469463981,500.0,0.00023298,120]
[419889215,1775469678595,1000.0,0.00032876,120]
[419889216,1775469681109,-1896.85131769,0.00012895,2]
[419889217,1775470021358,214.755145,0.00032876,120]
[419889218,1775470197937,1427.52294647,0.0003013,120]
[419889219,1775470198741,1000.0,0.0003287,120]
[419889220,1775470200453,889.75692615,0.00031,120]
[419889221,1775470202305,468.60920936,0.0003,120]
[419889222,1775470203521,464.14134712,0.00025,120]
[419889223,1775470205418,178.83814204,0.0003,120]
[419889225,1775470208818,357.04342258,0.0003,120]
[419889227,1775470210393,2042.57639704,0.0002497,120]
[419889228,1775470212158,758.36004665,0.00026,120]
[419889230,1775470214986,172.229999,0.0003,120]
[419889231,1775470215320,738.88691538,0.0002849,120]
[419889232,1775470217225,1891.12708185,0.0002876,120]
[419889233,1775470217608,1394.53856005,0.0003287,120]
[419889234,1775470221109,200.22764388,0.000327,120]
[419889235,1775470225138,500.0,0.0003287,120]
[419889236,1775470232237,-591.0,0.00012138,2]
[419889237,1775470232247,-1000.0,0.00013699,2]
[419889238,1775470232257,-250.0,0.00016038,2]
[419889239,1775470232266,-409.23540595,0.000169,2]
[419889241,1775470232275,-300.0,0.00017999,2]
[419889243,1775470232285,-500.0,0.00018,2]
[419889245,1775470232294,-420.0,0.00019639,2]
[419889246,1775470232304,-400.0,0.0002,30]
[419889248,1775470232313,-300.0,0.0002,30]
[419889251,1775470232323,-898.35845193,0.000212,30]
[419889252,1775470232332,-587.0,0.00021428,2]
[419889253,1775470232343,-2440.47498294,0.0002173,2]
[419889254,1775470232353,-3000.0,0.000218,2]
[419889256,1775470232362,-3000.0,0.0002181,2]
[419889258,1775470232372,-167.73943406,0.0002181,2]
[419889259,1775470232381,-3000.0,0.0002182,2]
[419889261,1775470232391,-6404.95216539,0.0002182,2]
[419889263,1775470232401,-3000.0,0.0002183,2]
[419889264,1775470232410,-4607.194528,0.0002184,2]
[419889266,1775470232420,-175.0,0.00022,2]
[419889267,1775470232430,-186.0,0.00022,2]
[419889268,1775470232440,-38736.20295219,0.00022,2]
[419889269,1775470232450,-476.7826634,0.00022335,30]
[419889270,1775470232459,-176.435346,0.00022335,2]
[419889271,1775470232468,-214.2,0.00022595,10]
[419889272,1775470232479,-42313.5416802,0.00022605,2]
[419889279,1775470238463,-500.0,0.00021999,2]
[419889280,1775470238473,-500.0,0.00021999,2]
[419889281,1775470238482,-500.0,0.00021999,2]
[419889282,1775470238492,-500.0,0.00021999,2]
[419889283,1775470238502,-649.47294923,0.00021999,2]
[419889284,1775470238512,-500.0,0.00021999,2]
[419889285,1775470238521,-165.19077386,0.00021999,2]
[419889286,1775470238531,-515.68573244,0.00021999,2]
[419889287,1775470238540,-500.0,0.00021999,2]
[419889288,1775470238551,-500.0,0.00021999,2]
[419889289,1775470238561,-500.0,0.00022604,2]
[419889290,1775470238570,-500.0,0.00022604,2]
[419889291,1775470238579,-500.0,0.00022604,2]
[419889292,1775470238591,-500.0,0.00022604,2]
[419889293,1775470238601,-500.0,0.00022604,2]
[419889294,1775470238611,-500.0,0.00022604,2]
[419889295,1775470238621,-500.0,0.00022604,2]
[419889296,1775470238631,-500.0,0.00022604,2]
[419889297,1775470238640,-648.24835466,0.00022604,2]
[419889298,1775470238651,-500.0,0.00022604,2]
[419889299,1775470238661,-500.0,0.00022604,2]
[419889300,1775470238670,-500.0,0.00022604,2]
[419889301,1775470238679,-500.0,0.00022604,2]
[419889302,1775470238688,-232.98732934,0.00022604,2]
[419889303,1775470238697,-500.0,0.00022604,2]
[419889304,1775470238707,-500.0,0.00022604,2]
[419889305,1775470238716,-500.0,0.00022604,2]
[419889306,1775470238726,-500.0,0.00022604,2]
[419889307,1775470238735,-36871.8351751,0.00022605,2]
[419889308,1775470238747,-5675.334293,0.00022605,2]
[419889467,1775470243818,-1393.1148101,0.00022605,2]
[419889469,1775470243831,-1064.18638485,0.00022605,2]
[419889479,1775470248539,-1661.97294563,0.00022605,2]
[419889486,1775470249051,-7334.11999821,0.00022605,2]
[419889487,1775470249268,-2394.21451842,0.00022605,2]
[419889512,1775470660622,501.31,0.00032877,120]
[419889513,1775470666244,500.0,0.0003287,120]
[419889516,1775470766483,15000.2,0.0003287,120]
[419889519,1775470891764,1000.0,0.00032876,120]
[419889522,1775470949331,179.0,0.00025834,120]
[419889524,1775471148194,500.0,0.00032877,120]
[419889536,1775471159880,500.0,0.00032877,120]
[419889537,1775471170267,500.0,0.00032877,120]
[419889539,1775471180049,500.0,0.00032877,120]
[419889541,1775471191641,500.0,0.00032877,120]
[419889542,1775471200222,500.0,0.00032877,120]
[419889543,1775471239935,393.823776,0.0002744,120]
[419889544,1775471294360,1350.0,0.00032877,120]
[419889545,1775471362427,1000.0,0.00032877,120]
[419889775,1775471441515,-3642.01347538,0.00013154,2]
[419889777,1775471441526,-300.0,0.00013694,2]
[419889779,1775471441537,-300.0,0.00013694,2]
[419889781,1775471441546,-300.0,0.00013694,2]
[419889783,1775471441556,-300.0,0.00013694,2]
[419889785,1775471441566,-300.0,0.00013694,2]
[419889787,1775471441575,-300.0,0.00013694,2]
[419889789,1775471441585,-300.0,0.00013694,2]
[419889791,1775471441594,-300.0,0.00013694,2]
[419889793,1775471441604,-300.0,0.00013694,2]
[419889795,1775471441614,-300.0,0.00013694,2]
[419889797,1775471441624,-300.0,0.00013694,2]
[419889799,1775471441633,-300.0,0.00013694,2]
[419889802,1775471441643,-300.0,0.00013694,2]
[419889805,1775471441654,-300.0,0.00013694,2]
[419889807,1775471441664,-300.0,0.00013694,2]
[419889808,1775471441673,-602.1856808,0.00013699,2]
[419889921,1775471443827,-397.8143192,0.00013699,2]
[419889922,1775471443837,-276.04616654,0.00018549,2]
[419889923,1775471443848,-702.45771511,0.00018549,2]
[419889924,1775471443858,-5732.99541732,0.00021353,2]
[419889985,1775471446652,-489.33497168,0.00021353,2]
[419889987,1775471446662,-166.0,0.00022,2]
[419889989,1775471446673,-177.0,0.00022,2]
[419889991,1775471446682,-2455.57856037,0.00022305,2]
[419890006,1775471446820,-536.79231808,0.00022305,2]
[419890635,1775471506523,1000.0,0.00032876,120]
[419890637,1775471867508,982.478,0.00032877,120]
[419890638,1775472099277,1000.0,0.00032876,120]
[419890639,1775472395604,336.06,0.00032867,120]
[419890640,1775472403619,684.872,0.00032867,120]
[419890641,1775472403678,684.872,0.00032867,120]
[419890642,1775472411694,684.872,0.00032867,120]
[419890643,1775472455835,600.756,0.00032867,120]
[419890644,1775472455889,600.756,0.00032867,120]
[419890645,1775472455942,600.756,0.00032867,120]
[419890646,1775472455998,600.756,0.00032867,120]
[419890647,1775472495817,512.0073,0.00032867,120]
[419890648,1775472495869,512.0073,0.00032867,120]
[419890649,1775472519051,412.515,0.00032867,120]
[419890650,1775472566795,163.76,9.003e-05,2]
[419890651,1775472576070,683.8666,0.00032867,120]
[419890652,1775472611189,600.756,0.00032867,120]
[419890653,1775472611240,600.756,0.00032867,120]
[419890654,1775472611309,600.756,0.00032867,120]
[419890655,1775472611356,600.756,0.00032867,120]
[419890656,1775472629137,1011.0,0.0002473,120]
[419890657,1775472630745,1011.0,0.00025966,120]
[419890658,1775472631735,1011.0,0.00027265,120]
[419890671,1775472633011,1011.0,0.00028628,120]
[419890672,1775472634407,1011.0,0.00030059,120]
[419890673,1775472635718,1011.0,0.00031562,120]
[419890793,1775472641417,-614.0,0.00013599,2]
[419890795,1775472641427,-255.0,0.00013697,2]
[419890797,1775472641437,-300.0,0.00013697,2]
[419890799,1775472641446,-300.0,0.00013697,2]
[419890801,1775472641456,-821.490239,0.00013697,2]
[419890981,1775472646833,-378.509761,0.00013697,2]
[419890983,1775472646843,-61708.6772,0.00013698,2]
[419890985,1775472646853,-535.07,0.00013698,2]
[419890987,1775472646862,-1000.0,0.00013699,2]
[419890989,1775472646873,-2566.93406526,0.00014175,2]
[419890992,1775472646897,-6150.57778553,0.00014375,2]
[419890994,1775472646907,-20700.97296557,0.00014383,2]
[419890997,1775472646992,-2578.04506166,0.00014383,2]
[419890998,1775472675241,500.0,0.00021364,120]
[419890999,1775472675465,500.0,0.00021364,120]
[419891000,1775472675693,500.0,0.00021364,120]
[419891001,1775472675912,500.0,0.00022303,120]
[419891002,1775472676302,500.0,0.00022304,120]
[419891003,1775472676525,500.0,0.00022304,120]
[419891004,1775472676812,500.0,0.00022304,120]
[419891005,1775472677024,500.0,0.00022304,120]
[419891006,1775472677242,500.0,0.00022304,120]
[419891007,1775472677457,500.0,0.00022304,120]
[419891008,1775472677696,376.83177665,0.00022304,120]
[419891009,1775472688568,683.8666,0.00032867,120]
[419891010,1775472707468,1000.0,0.00032876,120]
[419891011,1775472792600,683.8666,0.00032867,120]
[419891012,1775472828028,685.4734,0.00032867,120]
[419891013,1775472914115,683.8666,0.00032867,120]
[419891014,1775472932966,303.0,0.00028828,120]
[419891015,1775472935209,303.0,0.00030269,120]
[419891016,1775472936044,303.0,0.00031783,120]
[419891017,1775473004821,277.0,0.00030448,120]
[419891018,1775473062007,171.9165859,0.0003,120]
[419891019,1775473163625,1000.0,0.00027397,120]
[419891020,1775473163969,1000.0,0.00030137,120]
[419891021,1775473164289,1000.0,0.00032877,120]
[419891022,1775473233162,200.0,0.00029102,120]
[419891023,1775473234711,200.0,0.00030557,120]
[419891024,1775473235716,200.0,0.00032085,120]
[419891025,1775473319907,1000.0,0.00032876,120]
[419891026,1775473519222,50000.0,0.00032877,120]
[419891027,1775473520385,50000.0,0.00032877,120]
[419891028,1775473521275,50000.0,0.00032877,120]
[419891029,1775473531770,50000.314828,0.00032877,120]
[419891030,1775473533629,160.0,0.00032443,120]
[419891031,1775473573711,3355.52860477,0.00032877,120]
[419891043,1775473806736,170.39976696,0.00025,120]
[419891044,1775473814475,213.04736814,0.0003,120]
[419891045,1775473821170,1075.25222506,0.00032,120]
[419891046,1775473831695,161.0,0.00032667,120]
[419891167,1775473846195,-500.0,0.00013698,2]
[419891168,1775473846205,-500.0,0.00013698,2]
[419891169,1775473846215,-500.0,0.00013698,2]
[419891170,1775473846226,-1000.0,0.00013699,2]
[419891171,1775473846235,-458.94,0.00014382,2]
[419891172,1775473846245,-4446.14881341,0.00014383,2]
[419891173,1775473846355,-1544.58914564,0.00014383,2]
[419891177,1775473902189,1000.0,0.00032876,120]
[419891178,1775473934019,500.0,0.00022103,120]
[419891179,1775473934263,500.0,0.00022513,120]
[419891180,1775473934493,500.0,0.00023999,120]
[419891181,1775473934715,500.0,0.00025095,120]
[419891182,1775474291494,313.009481,0.00032876,120]
[419891183,1775474382249,500.0,0.0003287,120]
[419891184,1775474409197,2004.66,0.00032876,120]
[419891185,1775474505066,1000.0,0.00032876,120]
[419891186,1775474523097,10000.0,0.0003287,120]
[419891187,1775474982956,500.0,0.00032877,120]
[419891188,1775474994759,784.6,0.00032877,120]
[419891274,1775475032304,-368.35170898,0.00013,2]
[419891276,1775475032316,-2641.22068251,0.00013,2]
[419891278,1775475032327,-409.87543834,0.00013324,2]
[419891280,1775475032337,-1000.0,0.00013699,2]
[419891282,1775475032347,-1322.15317531,0.00014,2]
[419891319,1775475081902,-938.58275393,0.00013324,2]
[419891320,1775475081923,-938.58275393,0.00013324,2]
[419891321,1775475081935,-879.81489271,0.00013324,2]
[419891322,1775475085371,1000.0,0.00032876,120]
[419891323,1775475531237,705.66443376,0.00032877,120]
[419891324,1775475591468,500.0,0.00032877,120]
[419891329,1775475701169,1000.0,0.00032876,120]
[419891337,1775476232032,-1932.17903805,0.00011424,2]
[419891339,1775476232042,-1000.0,0.00013699,2]
[419891341,1775476232051,-153.0,0.00014,2]
[419891343,1775476232060,-153.0,0.00014,2]
[419891344,1775476232070,-153.0,0.00014,2]
[419891346,1775476232080,-153.0,0.00014,2]
[419891348,1775476232090,-153.0,0.00014,2]
[419891350,1775476232100,-153.0,0.00014,2]
[419891352,1775476232109,-153.0,0.00014,2]
[419891354,1775476232119,-153.0,0.00014,2]
[419891356,1775476232129,-276.0,0.00014,2]
[419891358,1775476232138,-6473.46445039,0.00014,2]
[419891360,1775476232147,-1706.07761396,0.00014175,2]
[419891362,1775476232157,-1584.58261372,0.00014383,2]
[419891364,1775476232167,-689.2451001,0.00014493,2]
[419891367,1775476232176,-186.4589059,0.00014493,2]
[419891369,1775476232185,-269.2868679,0.00014493,2]
[419891370,1775476232420,-1626.017432,0.00014583,2]
[419891371,1775476232466,-721.78845269,0.00014996,2]
[419891372,1775476232477,-1511.4116114,0.00015095,2]
[419891373,1775476232487,-500.0,0.00015752,2]
[419891374,1775476232496,-500.0,0.00015752,2]
[419891375,1775476232507,-4541.75548467,0.00015753,2]
[419891376,1775476232519,-340.6878661,0.00015753,2]
[419891524,1775476291666,1000.0,0.00032876,120]
[419891525,1775476350373,512.49,0.00032877,120]
[419891526,1775476464380,380.0,0.00030157,120]
[419891527,1775476532443,180.0,0.00029825,120]
[419891528,1775476534096,180.0,0.00031316,120]
[419891529,1775476543169,233.29608,0.00032877,120]
[419891530,1775476742404,2200.42791342,0.00032,120]
[419891531,1775476881561,-451.98368523,0.00013133,2]
[419891532,1775476881588,-425.17201277,0.00013233,14]
[419891533,1775476900573,1000.0,0.00032876,120]
[419891536,1775477040303,1200.0,0.00032877,120]
[419891537,1775477146875,4732.0,0.00032877,120]
[419891568,1775477433315,-602.0,0.00012857,2]
[419891569,1775477433333,-6.24692022,0.00012857,2]
[419891592,1775477438499,-500.12427626,0.00012857,2]
[419891593,1775477438509,-1000.0,0.00013699,2]
[419891594,1775477438519,-392.60207037,0.00013811,2]
[419891600,1775477441216,-2491.66458657,0.00013811,2]
[419891601,1775477441227,-186.4589059,0.00013983,2]
[419891602,1775477441236,-201.9651509,0.00013983,2]
[419891603,1775477441246,-516.9338251,0.00013987,2]
[419891604,1775477441255,-1739.4570306,0.00014175,2]
[419891605,1775477441265,-2023.45930112,0.00014538,2]
[419891606,1775477441274,-379.12270009,0.00014645,2]
[419891607,1775477441283,-341.00628625,0.00014699,2]
[419891608,1775477441293,-200.0,0.00014856,2]
[419891609,1775477441303,-200.0,0.00014856,2]
[419891610,1775477441315,-200.0,0.00014856,2]
[419891611,1775477441325,-5402.33614923,0.00015753,2]
[419891612,1775477441335,-466.6462,0.00015753,2]
[419891613,1775477441344,-201.9651509,0.00015815,2]
[419891614,1775477441355,-516.9338251,0.00015824,2]
[419891615,1775477441365,-319.508423,0.00016161,2]
[419891616,1775477441374,-179.94944,0.00016388,2]
[419891617,1775477441384,-106.90190932,0.00016841,2]
[419891625,1775477446829,-212.60651368,0.00016841,2]
[419891626,1775477446839,-321.98191196,0.000169,2]
[419891627,1775477446848,-1514.97430955,0.00017069,2]
[419891628,1775477446857,-186.4589059,0.00017258,2]
[419891629,1775477446867,-319.508423,0.00017521,2]
[419891630,1775477446877,-201.9651509,0.00017647,2]
[419891631,1775477446886,-516.9338251,0.00017661,2]
[419891632,1775477446896,-319.508423,0.00018201,2]
[419891633,1775477446905,-500.0,0.00018311,2]
[419891634,1775477446915,-500.0,0.00018311,2]
[419891635,1775477446925,-319.508423,0.00018882,2]
[419891636,1775477446934,-892.25475256,0.00018957,2]
[419891643,1775477500473,1000.0,0.00032876,120]
[419891644,1775477518092,284.17739423,0.00031533,120]
[419891652,1775477730077,160.0,0.0002956,120]
[419891653,1775477817796,241.55078509,0.00031547,120]
[419891654,1775478090256,1000.0,0.00032876,120]
[419891655,1775478107307,500.0,0.0003287,120]
[419891656,1775478118573,205.31816733,0.00031545,120]
[419891657,1775478228071,3500.0,0.00032876,120]
[419891658,1775478414572,575.61117044,0.00032876,120]
[419891659,1775478417704,174.52044223,0.0003165,120]
[419891660,1775478474280,2000.0,0.00032,120]
[419891661,1775478505892,5000.0,0.000328,120]
[419891663,1775478530062,1380.63844477,0.0003287,120]
[419891664,1775478546374,1380.63844477,0.0003287,120]
[419891665,1775478549148,1380.63844477,0.0003287,120]
[419891666,1775478551680,1380.63844477,0.0003287,120]
[419891667,1775478557256,1380.63844477,0.0003287,120]
[419891668,1775478557890,1380.63844477,0.0003287,120]
[419891669,1775478566157,380.63844477,0.0003287,120]
[419891670,1775478566916,380.63844477,0.0003287,120]
[419891671,1775478567697,380.63844477,0.0003287,120]
[419891672,1775478568498,380.63844477,0.0003287,120]
[419891673,1775478569368,380.63844477,0.0003287,120]
[419891674,1775478575918,2556.0,0.000328,120]
[419891675,1775478578754,193.61555229,0.0003287,120]
[419891676,1775478593896,1000.0,0.000328,120]
[419891711,1775478638734,-1000.0,0.00013699,2]
[419891712,1775478638744,-172.3112751,0.00015095,2]
[419891713,1775478638754,-186.458906,0.00015095,2]
[419891714,1775478638764,-201.9651509,0.00015095,2]
[419891715,1775478638774,-334.07330325,0.00016897,2]
[419891716,1775478638783,-172.3112751,0.00018075,2]
[419891717,1775478638793,-300.0,0.00018933,2]
[419891718,1775478638802,-173.50825543,0.00018934,2]
[419891719,1775478638812,-502.69042711,0.00018934,2]
[419891720,1775478638822,-578.20924308,0.00018934,2]
[419891721,1775478638832,-2230.315306,0.00018934,2]
[419891722,1775478638843,-23.26688348,0.0001894,2]
[419891723,1775478638855,-224.84973152,0.0001894,2]
[419891724,1775478638864,-179.94944,0.00018951,2]
[419891725,1775478638874,-937.90082848,0.00018957,2]
[419892078,1775478642689,1000.0,0.000328,120]
[419892453,1775478681296,-209.50275486,0.00013599,2]
[419892454,1775478687929,1000.0,0.00032876,120]
[419892455,1775478814011,196.4,0.00032876,120]
[419892456,1775478820075,284.0,0.00030116,120]
[419892457,1775479297404,1000.0,0.00032876,120]
[419892458,1775479311333,1426.0,0.00032877,120]
[419892463,1775479411811,445.0,0.0003,120]
[419892464,1775479510218,2011.74,0.00032877,120]
[419892465,1775479612367,2000.0,0.00032877,120]
[419892466,1775479820554,3550.0,0.00030685,120]
[419892471,1775479832776,-151.0,0.00013292,2]
[419892473,1775479832786,-300.24081186,0.00013699,2]
[419892533,1775479839020,-699.75918814,0.00013699,2]
[419892535,1775479839030,-1837.437898,0.00016061,2]
[419892537,1775479839039,-172.3112753,0.00016061,2]
[419892539,1775479839048,-300.0,0.00016427,2]
[419892541,1775479839058,-181.09360497,0.00016428,2]
[419892543,1775479839067,-151.0,0.00016428,2]
[419892545,1775479839077,-151.0,0.00016428,2]
[419892547,1775479839086,-151.0,0.00016428,2]
[419892549,1775479839095,-151.0,0.00016428,2]
[419892551,1775479839104,-151.0,0.00016428,2]
[419892553,1775479839114,-151.0,0.00016428,2]
[419892555,1775479839123,-151.0,0.00016428,2]
[419892557,1775479839132,-151.0,0.00016428,2]
[419892559,1775479839141,-151.0,0.00016428,2]
[419892561,1775479839150,-151.0,0.00016428,2]
[419892563,1775479839160,-151.0,0.00016428,2]
[419892565,1775479839169,-151.0,0.00016428,2]
[419892567,1775479839178,-151.0,0.00016428,2]
[419892569,1775479839187,-151.0,0.00016428,2]
[419892571,1775479839197,-151.0,0.00016428,2]
[419892573,1775479839206,-151.0,0.00016428,2]
[419892575,1775479839215,-151.0,0.00016428,2]
[419892577,1775479839225,-151.0,0.00016428,2]
[419892579,1775479839234,-151.0,0.00016428,2]
[419892581,1775479839244,-179.41595537,0.00016428,2]
[419892583,1775479839254,-151.37235343,0.00016428,2]
[419892585,1775479839263,-5000.0,0.00016438,2]
[419892587,1775479839273,-3522.128707,0.00016438,2]
[419892589,1775479839282,-1016.6633051,0.00016494,2]
[419892591,1775479839292,-1000.0,0.00016689,2]
[419892593,1775479839302,-278.0530995,0.00016766,2]
[419892595,1775479839312,-599.60298507,0.00017312,2]
[419892597,1775479839322,-2230.315306,0.00017312,2]
[419892599,1775479839331,-2312.83697232,0.0001786,2]